bitfinex-derivatives/quotes_ETHF0:USTF0_20230701
["timestamp","ask_amount","ask_price","bid_price","bid_amount"]
[1688222355391,0.59877635,1922.9,1922.8,1.03637345]
[1688222356200,0.59877635,1922.9,1922.8,0.7496571]
[1688222356698,0.59877635,1922.9,1922.8,1.03637345]
[1688222359604,0.59877635,1922.9,1922.8,4.31337345]
[1688222362204,0.59877635,1922.9,1922.8,1.03637345]
[1688222364198,0.31206,1922.9,1922.8,1.03637345]
[1688222364399,0.31206,1922.9,1922.8,4.31337345]
[1688222364600,0.78027,1923.0,1922.8,4.31337345]
[1688222364902,0.78027,1923.0,1922.8,7.28386837]
[1688222370609,1.24630599,1923.1,1922.8,7.28386837]
[1688222372306,1.24631599,1923.1,1923.0,3.58906]
[1688222372507,1.24631599,1923.1,1923.0,4.06906349]
[1688222373803,0.31206,1923.1,1923.0,4.06906349]
[1688222381515,0.31206,1923.1,1923.0,4.47572735]
[1688222392129,0.31206,1923.1,1923.0,1.19872735]
[1688222392325,1.24664945,1923.1,1923.0,1.19872735]
[1688222395920,1.5333658,1923.1,1923.0,1.19872735]
[1688222396825,1.24664945,1923.1,1923.0,1.19872735]
[1688222398931,1.24664945,1923.1,1923.0,4.45772735]
[1688222399128,0.31206,1923.1,1923.0,4.45772735]
[1688222402532,0.59877635,1923.1,1923.0,4.171011]
[1688222402727,1.5333658,1923.1,1923.0,4.171011]
[1688222402929,1.5333658,1923.1,1923.0,4.45772735]
[1688222403538,1.24664945,1923.1,1923.0,4.45772735]
[1688222403835,0.31206,1923.1,1923.0,4.45772735]
[1688222406035,0.31206,1923.1,1923.0,4.58661868]
[1688222407439,0.59877635,1923.1,1923.0,4.58661868]
[1688222407739,1.24664945,1923.1,1923.0,4.58661868]
[1688222407939,0.31206,1923.1,1923.0,4.26444021]
[1688222409030,0.59877635,1923.1,1923.0,4.29987764]
[1688222409230,1.5333658,1923.1,1923.0,4.29987764]
[1688222410141,1.5333658,1923.1,1923.0,4.58659399]
[1688222412144,1.5333658,1923.1,1923.0,4.29987764]
[1688222413145,1.5333658,1923.1,1923.0,3.97772386]
[1688222413341,1.5333658,1923.1,1923.0,4.26444021]
[1688222413542,1.5333658,1923.1,1923.0,3.97772386]
[1688222414632,1.5333658,1923.1,1923.0,4.29637221]
[1688222415343,1.5333658,1923.1,1923.0,3.97772386]
[1688222415543,1.5333658,1923.1,1923.0,4.26444021]
[1688222415743,1.5333658,1923.1,1923.0,4.58307995]
[1688222416147,1.5333658,1923.1,1923.0,4.26444021]
[1688222417548,1.24664945,1923.1,1923.0,4.26444021]
[1688222417749,0.31206,1923.1,1923.0,4.26444021]
[1688222422140,0.31206,1923.1,1923.0,4.60102633]
[1688222425243,0.94392011,1923.2,1923.0,4.60102633]
[1688222425448,0.94392011,1923.2,1923.0,7.80882633]
[1688222426243,0.00780011,1923.2,1923.1,3.277]
[1688222426445,0.00780011,1923.2,1923.1,3.88133213]
[1688222427044,0.00780011,1923.2,1923.1,8.99463213]
[1688222433350,0.60650646,1923.2,1923.1,8.99463213]
[1688222433750,0.60650646,1923.2,1923.1,8.68262213]
[1688222434059,0.60650646,1923.2,1923.1,8.99462213]
[1688222434553,0.60650646,1923.2,1923.1,3.56932213]
[1688222435660,0.31979011,1923.2,1923.1,4.16805848]
[1688222436354,0.60650646,1923.2,1923.1,4.16805848]
[1688222436560,0.60650646,1923.2,1923.1,4.16807848]
[1688222439459,0.31979011,1923.2,1923.1,4.16807848]
[1688222440967,0.60650646,1923.2,1923.1,3.56932213]
[1688222441166,0.60650646,1923.2,1923.1,3.3951675]
[1688222442060,0.60650646,1923.2,1923.1,0.1181675]
[1688222444262,0.60650646,1923.2,1923.1,0.4302175]
[1688222445160,0.60650646,1923.2,1923.1,0.1181675]
[1688222445461,3.81430646,1923.2,1923.1,0.1181675]
[1688222446255,0.56748412,1923.1,1922.7,3.58912]
[1688222446469,3.2078,1922.8,1922.7,3.58912]
[1688222446670,3.80661635,1922.8,1922.7,3.58912]
[1688222446964,4.47810047,1922.8,1922.7,3.6973662]
[1688222447163,7.75510047,1922.8,1922.7,0.60824319]
[1688222447865,8.68968043,1922.8,1922.7,0.37322871]
[1688222448069,8.68968043,1922.8,1922.3,0.78033]
[1688222448265,3.277,1922.5,1922.3,0.78033]
[1688222448568,0.59888635,1922.4,1922.3,0.78033]
[1688222448757,0.59888635,1922.4,1922.3,1.06704635]
[1688222448960,0.31217,1922.4,1922.3,1.06704635]
[1688222449164,0.31217,1922.4,1922.3,1.47536234]
[1688222452170,0.31217,1922.4,1922.3,4.73436234]
[1688222452569,0.31214,1922.6,1922.3,7.94216234]
[1688222452873,0.31213,1922.6,1922.5,3.57113]
[1688222453068,0.31213,1922.6,1922.5,3.85784635]
[1688222455577,0.31213,1922.6,1922.5,4.09530473]
[1688222458469,1.04049,1922.7,1922.5,4.09530473]
[1688222458771,1.04049,1922.7,1922.6,3.58913]
[1688222459278,1.04049,1922.7,1922.6,3.82655842]
[1688222460972,1.32720635,1922.7,1922.6,3.82655842]
[1688222461377,1.04049,1922.7,1922.6,3.82655842]
[1688222461574,1.32720635,1922.7,1922.6,3.82655842]
[1688222462877,1.04049,1922.7,1922.6,3.82655842]
[1688222463573,1.32720635,1922.7,1922.6,3.82655842]
[1688222467284,1.32720635,1922.7,1922.6,4.11327477]
[1688222468380,1.04049,1922.7,1922.6,4.11327477]
[1688222469182,1.32720635,1922.7,1922.6,4.11327477]
[1688222469385,1.04049,1922.7,1922.6,4.11327477]
[1688222472785,1.32720635,1922.7,1922.6,4.11327477]
[1688222473482,1.04049,1922.7,1922.6,4.11327477]
[1688222475979,12.26311,1923.0,1922.6,4.11327477]
[1688222476174,11.4829,1923.0,1922.9,0.31209]
[1688222476382,0.31207,1923.0,1922.9,3.87580635]
[1688222476580,5.76738,1923.1,1922.9,3.87580635]
[1688222476779,0.31207,1923.0,1922.9,3.87580635]
[1688222476982,5.76738,1923.1,1922.9,3.87580635]
[1688222477578,0.78018,1923.1,1922.9,3.87580635]
[1688222480585,4.84218047,1923.1,1922.9,3.56371635]
[1688222480789,4.84218047,1923.1,1922.9,3.277]
[1688222480991,3.277,1923.0,1922.7,8.84949]
[1688222481185,0.59880635,1922.9,1922.7,8.84949]
[1688222481382,0.59880635,1922.9,1922.7,3.87580635]
[1688222484696,0.31209,1922.9,1922.7,3.87580635]
[1688222486289,0.31209,1922.9,1922.8,3.5891]
[1688222492704,5.93522,1923.0,1922.8,3.5891]
[1688222493008,0.93557611,1923.1,1922.9,3.87580635]
[1688222493210,0.31205,1923.1,1923.0,3.277]
[1688222493399,0.31205,1923.1,1923.0,3.58907]
[1688222494208,0.59876635,1923.1,1923.0,3.58907]
[1688222494807,0.59876635,1923.1,1923.0,3.277]
[1688222496403,0.31205,1923.1,1923.0,3.58907]
[1688222498908,0.31205,1923.1,1923.0,4.01481024]
[1688222516917,0.59876635,1923.1,1923.0,3.70274024]
[1688222517118,0.59876635,1923.1,1923.0,3.68474024]
[1688222517713,0.59876635,1923.1,1923.0,3.99681024]
[1688222517907,0.31205,1923.1,1923.0,4.28352659]
[1688222524922,3.51985,1923.1,1923.0,4.28352659]
[1688222533228,8.55646517,1923.2,1923.0,4.28352659]
[1688222533229,7.98898105,1923.2,1923.0,4.28352659]
[1688222533435,1.87964622,1923.2,1923.1,3.57105]
[1688222535330,0.94407011,1923.2,1923.1,3.57105]
[1688222538432,0.00780011,1923.2,1923.1,3.57105]
[1688222540026,0.93557611,1923.4,1923.3,0.31202]
[1688222540233,0.93557611,1923.6,1923.3,10.17682]
[1688222540429,0.93557611,1923.6,1923.5,3.58899]
[1688222540630,7.35687094,1923.7,1923.5,3.87570635]
[1688222540838,7.35687094,1923.7,1923.6,3.58897]
[1688222541227,0.31196,1923.7,1923.6,3.58897]
[1688222543841,0.31196,1923.7,1923.6,3.277]
[1688222545641,0.59867635,1923.7,1923.6,3.277]
[1688222545842,3.80647635,1923.7,1923.6,3.277]
[1688222546444,7.08347635,1923.7,1923.3,3.277]
[1688222546647,3.2078,1923.5,1923.3,3.277]
[1688222546843,0.59871635,1923.4,1923.3,3.277]
[1688222547643,1.16620047,1923.4,1923.3,3.7006021]
[1688222547839,1.44341494,1923.4,1923.3,3.7006021]
[1688222550448,1.44341494,1923.4,1923.3,4.0126221]
[1688222551646,1.44341494,1923.4,1923.3,4.29933845]
[1688222551849,0.58921447,1923.4,1923.3,4.29933845]
[1688222554346,0.27721447,1923.4,1923.3,4.29933845]
[1688222557341,0.58921447,1923.4,1923.3,4.29933845]
[1688222562657,0.87593082,1923.4,1923.3,4.0126221]
[1688222563356,0.87593082,1923.4,1923.3,4.29933845]
[1688222564363,0.58921447,1923.4,1923.3,4.29933845]
[1688222568062,0.27721447,1923.4,1923.3,4.29933845]
[1688222569266,0.27721447,1923.4,1923.3,7.57633845]
[1688222569467,0.312,1923.6,1923.3,7.57633845]
[1688222569668,0.312,1923.6,1923.5,3.259]
[1688222569864,0.312,1923.6,1923.5,3.57099]
[1688222570167,0.312,1923.6,1923.5,3.85770635]
[1688222581981,0.312,1923.6,1923.5,4.27132142]
[1688222582883,0.60528669,1923.6,1923.5,4.27132142]
[1688222587585,0.29328669,1923.6,1923.5,4.27132142]
[1688222589583,0.60525669,1923.6,1923.5,4.27132142]
[1688222595291,0.89197304,1923.6,1923.5,4.27132142]
[1688222596092,0.60525669,1923.6,1923.5,4.27132142]
[1688222596593,0.89197304,1923.6,1923.5,4.27132142]
[1688222597694,0.60525669,1923.6,1923.5,4.27132142]
[1688222600796,0.89197304,1923.6,1923.5,4.27132142]
[1688222600986,0.99597304,1923.6,1923.4,3.245]
[1688222601296,6.4608,1923.5,1923.2,3.245]
[1688222601491,3.2078,1923.3,1923.2,3.245]
[1688222601787,3.71925354,1923.3,1923.2,3.245]
[1688222601995,4.65465402,1923.3,1923.2,3.55704]
[1688222602193,4.65465402,1923.3,1923.2,3.97059471]
[1688222612403,1.44685402,1923.3,1923.2,4.25731106]
[1688222612704,0.19943354,1923.3,1923.2,7.53431106]
[1688222613001,10.97372148,1923.4,1923.2,7.53431106]
[1688222613199,1.24722148,1923.4,1923.3,3.272]
[1688222613405,0.312,1923.4,1923.3,3.58402]
[1688222614107,4.45503148,1923.5,1923.3,3.58402]
[1688222614300,4.45503148,1923.5,1923.4,3.271]
[1688222614610,4.45503148,1923.5,1923.4,3.86971635]
[1688222615803,3.51981,1923.5,1923.4,3.86971635]
[1688222616307,3.51981,1923.5,1923.4,3.271]
[1688222616308,3.80652635,1923.5,1923.4,3.271]
[1688222623312,0.31201,1923.5,1923.4,3.86971635]
[1688222624115,1.24722148,1923.6,1923.4,3.86971635]
[1688222624407,11.18834631,1923.7,1923.6,0.31197]
[1688222624613,4.14379,1923.7,1923.6,3.84368635]
[1688222624909,0.93599,1923.7,1923.6,3.84368635]
[1688222627713,1.20897459,1923.7,1923.6,3.84368635]
[1688222632820,1.49569094,1923.7,1923.6,3.84368635]
[1688222633022,1.49569094,1923.7,1923.6,3.55697]
[1688222633823,4.70349094,1923.7,1923.6,3.84368635]
[1688222634021,4.70349094,1923.7,1923.6,3.55697]
[1688222635519,4.70349094,1923.7,1923.6,3.84368635]
[1688222635824,4.41677459,1923.7,1923.6,3.84368635]
[1688222637823,4.41677459,1923.7,1923.6,4.26785195]
[1688222638813,4.70349094,1923.7,1923.6,4.26785195]
[1688222639727,4.41677459,1923.7,1923.6,4.26785195]
[1688222639928,1.20897459,1923.7,1923.6,4.26785195]
[1688222640430,0.58493459,1923.7,1923.6,4.26785195]
[1688222642324,0.27298459,1923.7,1923.6,4.26785195]
[1688222642629,0.27298459,1923.7,1923.6,4.37185195]
[1688222642823,0.45327218,1923.7,1923.6,4.37185195]
[1688222644736,0.45327218,1923.7,1923.6,9.37185195]
[1688222648529,4.55567911,1924.1,1923.6,12.64885195]
[1688222648739,3.2078,1924.1,1924.0,3.58391]
[1688222649126,3.2078,1924.1,1924.0,3.87062635]
[1688222649523,6.17369148,1924.2,1924.0,3.87062635]
[1688222649722,6.60088975,1924.2,1924.1,3.55689]
[1688222656338,6.98077483,1924.2,1924.1,3.55689]
[1688222660942,6.98077483,1924.2,1924.1,3.97805015]
[1688222664949,7.26749118,1924.2,1924.1,3.97805015]
[1688222668354,7.21504164,1924.2,1924.1,3.97805015]
[1688222668650,6.92832529,1924.2,1924.1,3.97805015]
[1688222669552,7.21504164,1924.2,1924.1,3.97805015]
[1688222670659,6.92832529,1924.2,1924.1,3.97805015]
[1688222673763,7.21504164,1924.2,1924.1,3.97805015]
[1688222673963,6.92832529,1924.2,1924.1,3.66616015]
[1688222674165,7.21504164,1924.2,1924.1,3.66616015]
[1688222674368,7.21504164,1924.2,1924.1,3.69216015]
[1688222674658,10.49204164,1924.2,1923.9,3.265]
[1688222674966,0.31192,1923.9,1923.7,3.265]
[1688222675163,3.2078,1923.8,1923.7,3.265]
[1688222675461,4.68303546,1923.8,1923.7,3.265]
[1688222676058,5.61825694,1923.8,1923.7,3.265]
[1688222677659,5.61825694,1923.8,1923.7,3.57695]
[1688222677865,5.61825694,1923.8,1923.7,3.86366635]
[1688222678559,4.68303546,1923.8,1923.7,3.86366635]
[1688222679065,4.39631911,1923.8,1923.7,3.86366635]
[1688222680966,3.82883499,1923.8,1923.7,3.86366635]
[1688222682070,3.82883499,1923.8,1923.7,3.86966635]
[1688222685669,4.76405647,1923.8,1923.7,3.86966635]
[1688222685867,3.82883499,1923.8,1923.7,3.86966635]
[1688222688070,0.62103499,1923.8,1923.7,3.86966635]
[1688222688771,0.62103499,1923.8,1923.7,4.28130341]
[1688222691074,4.11555134,1923.8,1923.7,4.28130341]
[1688222691278,4.11555134,1923.8,1923.7,3.68263706]
[1688222691571,5.05077282,1923.8,1923.7,3.271]
[1688222691877,11.1734377,1923.8,1923.7,3.271]
[1688222692074,11.1734377,1923.8,1923.6,3.245]
[1688222692273,0.56748412,1923.7,1923.6,3.245]
[1688222692480,1.17972379,1923.7,1923.6,3.245]
[1688222695078,1.17972379,1923.7,1923.6,3.53171635]
[1688222695280,0.61223967,1923.7,1923.6,3.53171635]
[1688222695485,0.61223967,1923.7,1923.6,4.25157812]
[1688222700476,0.89895602,1923.7,1923.6,3.65289177]
[1688222702069,0.89895602,1923.7,1923.6,0.40789177]
[1688222702273,5.1111775,1923.7,1923.4,3.272]
[1688222702480,3.51979,1923.5,1923.4,3.272]
[1688222702675,3.80650635,1923.5,1923.4,3.272]
[1688222702974,4.10690075,1923.5,1923.4,3.68951166]
[1688222704275,4.10690075,1923.5,1923.4,4.28822801]
[1688222704470,0.6123844,1923.5,1923.4,4.28822801]
[1688222705285,4.10690075,1923.5,1923.4,0.41751166]
[1688222705472,4.01222581,1923.5,1923.4,3.68951166]
[1688222705783,4.01222581,1923.5,1923.4,3.272]
[1688222705978,4.01222581,1923.5,1923.4,3.584]
[1688222706170,4.01222581,1923.5,1923.4,3.272]
[1688222706376,4.01222581,1923.5,1923.3,3.265]
[1688222706575,3.82048412,1923.4,1923.1,3.245]
[1688222706774,3.2078,1923.2,1923.1,3.245]
[1688222707081,4.08731412,1923.2,1923.1,3.66594903]
[1688222708777,4.08731412,1923.2,1923.1,3.97799903]
[1688222709880,4.08731412,1923.2,1923.1,3.66594903]
[1688222710475,4.08731412,1923.2,1923.1,3.97799903]
[1688222710676,4.08731412,1923.2,1923.1,3.66594903]
[1688222711779,4.08731412,1923.2,1923.1,3.97799903]
[1688222712179,4.08731412,1923.2,1923.1,4.26471538]
[1688222712381,3.51983,1923.2,1923.1,4.26471538]
[1688222712585,3.2078,1923.2,1923.1,4.28471538]
[1688222712791,5.97586,1923.5,1923.1,4.28471538]
[1688222712984,5.97586,1923.5,1923.4,3.245]
[1688222713180,5.97586,1923.5,1923.4,3.84371635]
[1688222713683,5.97586,1923.5,1923.4,3.53171635]
[1688222713890,6.26257635,1923.5,1923.4,3.53171635]
[1688222714081,6.26257635,1923.5,1923.4,3.245]
[1688222715486,9.51557635,1923.5,1923.2,3.55702]
[1688222715900,10.45113593,1923.5,1923.3,0.28671635]
[1688222716186,10.45113593,1923.5,1923.3,0.59872635]
[1688222716391,4.19127412,1923.6,1923.4,3.272]
[1688222716392,3.51979,1923.6,1923.4,3.272]
[1688222716585,4.92336074,1923.6,1923.5,0.28671635]
[1688222717182,5.21007709,1923.6,1923.4,3.58399]
[1688222717391,5.21007709,1923.6,1923.4,3.87070635]
[1688222721093,4.14339074,1923.6,1923.5,3.245]
[1688222721294,3.2078,1923.8,1923.6,0.31197]
[1688222721497,3.2078,1923.8,1923.7,3.86966635]
[1688222722092,0.31194,1923.8,1923.7,3.86966635]
[1688222722699,4.45545406,1924.0,1923.9,0.31192]
[1688222722889,4.45545406,1924.0,1923.9,3.84363635]
[1688222723088,3.5197,1924.0,1923.9,3.84363635]
[1688222724087,0.3119,1924.0,1923.9,3.84363635]
[1688222725596,1.87153406,1924.1,1923.9,3.84363635]
[1688222725794,0.93578,1924.1,1924.0,3.272]
[1688222725994,0.93578,1924.1,1924.0,3.5839]
[1688222729191,0.93578,1924.1,1924.0,3.272]
[1688222730698,0.93578,1924.1,1924.0,3.5839]
[1688222733301,1.21713031,1924.1,1924.0,3.272]
[1688222735599,1.50384666,1924.1,1924.0,3.272]
[1688222736504,1.21713031,1924.1,1924.0,3.272]
[1688222736799,1.21713031,1924.1,1924.0,3.5839]
[1688222738699,1.21713031,1924.1,1924.0,3.272]
[1688222739107,1.50384666,1924.1,1924.0,3.272]
[1688222741105,1.21713031,1924.1,1924.0,3.272]
[1688222741707,1.50384666,1924.1,1924.0,3.272]
[1688222743305,1.50384666,1924.1,1924.0,3.245]
[1688222744203,1.21713031,1924.1,1924.0,3.5569]
[1688222748214,9.33046488,1924.8,1924.3,5.0]
[1688222748414,11.04559793,1924.8,1924.6,3.271]
[1688222748609,4.92293305,1924.8,1924.7,3.57679]
[1688222748913,3.2078,1924.8,1924.7,3.86350635]
[1688222749109,0.31176,1924.9,1924.7,3.86350635]
[1688222749313,0.00779322,1924.9,1924.8,3.265]
[1688222749510,0.00779322,1924.9,1924.8,3.57678]
[1688222750022,0.31955322,1924.9,1924.8,3.57678]
[1688222750205,0.00779322,1924.9,1924.8,3.57678]
[1688222750411,0.31955322,1924.9,1924.8,3.57678]
[1688222750912,0.60626957,1924.9,1924.8,3.57678]
[1688222751302,0.31955322,1924.9,1924.8,3.57678]
[1688222752809,0.00779322,1924.9,1924.8,3.57678]
[1688222755813,0.59414209,1924.9,1924.8,3.57678]
[1688222765416,0.59414209,1924.9,1924.8,3.68078]
[1688222766424,0.59414209,1924.9,1924.8,8.68078]
[1688222768115,0.59414209,1924.9,1924.8,8.57678]
[1688222768520,0.59414209,1924.9,1924.8,3.57678]
[1688222768822,0.59414209,1924.9,1924.8,8.57678]
[1688222769927,0.59414209,1924.9,1924.8,3.57678]
[1688222770115,0.59414209,1924.9,1924.8,8.57678]
[1688222770531,0.59414209,1924.9,1924.8,3.57678]
[1688222770724,0.59414209,1924.9,1924.8,8.57678]
[1688222782133,4.8293,1925.1,1924.9,3.277]
[1688222782328,4.8293,1925.1,1925.0,3.87046635]
[1688222783127,5.11601635,1925.1,1925.0,3.58375]
[1688222783326,5.11601635,1925.1,1925.0,3.87046635]
[1688222783827,4.8293,1925.1,1925.0,3.87046635]
[1688222789835,5.26876139,1925.1,1925.0,3.87046635]
[1688222790437,5.55547774,1925.1,1925.0,3.87046635]
[1688222790940,5.55547774,1925.1,1925.0,3.58375]
[1688222791137,5.26876139,1925.1,1925.0,3.87046635]
[1688222791343,5.55547774,1925.1,1925.0,3.87046635]
[1688222792633,5.26876139,1925.1,1925.0,4.28739483]
[1688222793242,6.20416753,1925.1,1925.0,4.28739483]
[1688222796941,6.49088388,1925.1,1925.0,4.00067848]
[1688222797249,13.02926876,1925.1,1925.0,3.58375]
[1688222798634,13.71415402,1925.1,1925.0,3.58375]
[1688222799943,13.61015402,1925.1,1925.0,3.58375]
[1688222800244,13.01171767,1925.1,1925.0,3.87046635]
[1688222800443,12.33309707,1925.1,1925.0,3.87046635]
[1688222800645,12.61981342,1925.1,1925.0,3.87046635]
[1688222802045,12.33309707,1925.1,1925.0,3.87046635]
[1688222805444,12.61981342,1925.1,1925.0,3.87046635]
[1688222805643,12.61981342,1925.1,1925.0,3.58375]
[1688222806142,12.93153342,1925.1,1925.0,3.58375]
[1688222806335,12.93153342,1925.1,1925.0,3.87046635]
[1688222807856,12.93153342,1925.1,1925.0,3.58375]
[1688222808352,12.93153342,1925.1,1925.0,3.87046635]
[1688222809545,12.93153342,1925.1,1925.0,3.58375]
[1688222809743,6.80260388,1925.1,1925.0,3.58375]
[1688222810143,12.93607445,1925.1,1925.0,3.58375]
[1688222810347,6.80260388,1925.1,1925.0,3.58375]
[1688222811055,13.61015402,1925.1,1925.0,3.58375]
[1688222815245,13.61015402,1925.1,1925.0,3.87046635]
[1688222815654,13.32343767,1925.1,1925.0,3.87046635]
[1688222815850,13.01171767,1925.1,1925.0,3.87046635]
[1688222818061,13.29843402,1925.1,1925.0,3.58375]
[1688222818757,16.50623402,1925.1,1925.0,3.58375]
[1688222820456,16.81795402,1925.1,1925.0,3.58375]
[1688222826463,16.81795402,1925.1,1925.0,3.57675]
[1688222828262,10.01040388,1925.1,1925.0,3.57675]
[1688222832162,10.01040388,1925.1,1925.0,0.31175]
[1688222839675,50.81040388,1925.1,1925.0,0.31175]
[1688222839972,56.10223811,1925.1,1925.0,0.31175]
[1688222841272,15.30223811,1925.1,1925.0,0.31175]
[1688222841572,10.01040388,1925.1,1925.0,0.31175]
[1688222841975,15.30223811,1925.1,1925.0,0.31175]
[1688222848678,16.53797939,1925.1,1925.0,0.59846635]
[1688222849076,16.82469574,1925.1,1925.0,0.59846635]
[1688222849468,16.82469574,1925.1,1925.0,0.31175]
[1688222849778,16.82469574,1925.1,1925.0,0.59846635]
[1688222851071,10.01040388,1925.1,1925.0,0.59846635]
[1688222852168,10.01040388,1925.1,1925.0,3.86946635]
[1688222854572,10.01040388,1925.1,1925.0,3.58275]
[1688222855385,10.01040388,1925.1,1925.0,4.00359391]
[1688222856985,10.01040388,1925.1,1925.0,4.29031026]
[1688222857379,9.72368753,1925.1,1925.0,4.29031026]
[1688222859677,10.01040388,1925.1,1925.0,4.29031026]
[1688222859982,10.01040388,1925.1,1925.0,4.00359391]
[1688222861392,9.72368753,1925.1,1925.0,4.29031026]
[1688222863598,10.01040388,1925.1,1925.0,4.29031026]
[1688222863902,9.72368753,1925.1,1925.0,4.29031026]
[1688222864298,10.01040388,1925.1,1925.0,4.29031026]
[1688222864598,10.01040388,1925.1,1925.0,4.00359391]
[1688222866300,10.01040388,1925.1,1925.0,4.29031026]
[1688222868700,9.72368753,1925.1,1925.0,4.29031026]
[1688222868902,10.01040388,1925.1,1925.0,4.29031026]
[1688222870506,10.01040388,1925.1,1925.0,4.00359391]
[1688222875008,10.01040388,1925.1,1925.0,4.29031026]
[1688222876306,10.01040388,1925.1,1925.0,4.00359391]
[1688222876710,10.01040388,1925.1,1925.0,4.29031026]
[1688222877406,10.01040388,1925.1,1925.0,4.00359391]
[1688222878112,10.01040388,1925.1,1925.0,4.29031026]
[1688222881914,10.01040388,1925.1,1925.0,4.00359391]
[1688222882513,10.01040388,1925.1,1925.0,4.29031026]
[1688222882714,10.01040388,1925.1,1925.0,4.00359391]
[1688222883212,13.38740388,1925.1,1924.7,4.30416]
[1688222883510,12.62243419,1924.8,1924.7,0.31177]
[1688222883814,15.40577015,1924.8,1924.7,0.31177]
[1688222884015,15.69248249,1924.8,1924.7,0.31177]
[1688222888821,8.87288895,1924.8,1924.7,0.31177]
[1688222890619,15.00415679,1924.8,1924.7,0.31177]
[1688222892214,15.00015679,1924.8,1924.7,0.31177]
[1688222895223,15.00015679,1924.8,1924.6,0.42117074]
[1688222895422,10.25546398,1924.7,1924.6,0.00779322]
[1688222895615,15.33452671,1924.7,1924.6,0.00779322]
[1688222896118,9.20325887,1924.7,1924.6,0.00779322]
[1688222896921,16.02285241,1924.7,1924.6,0.00779322]
[1688222897121,9.20325887,1924.7,1924.6,0.00779322]
[1688222898422,15.33155362,1924.7,1924.6,0.00779322]
[1688222903231,56.13155362,1924.7,1924.6,0.00779322]
[1688222904124,0.85420047,1924.6,1924.4,0.42461855]
[1688222904326,0.31184,1924.4,1924.2,0.31187]
[1688222904523,3.51966,1924.3,1924.2,0.31187]
[1688222904726,3.78872147,1924.3,1924.2,0.31187]
[1688222905123,4.64292194,1924.3,1924.2,0.31187]
[1688222919351,3.78872147,1924.3,1924.2,0.59858635]
[1688222919641,1.76956147,1924.3,1924.2,3.84358635]
[1688222919843,0.2019632,1924.3,1924.2,3.84358635]
[1688222920042,0.0675632,1924.3,1924.2,3.84358635]
[1688222920343,1.24757579,1924.8,1924.2,7.05138635]
[1688222920545,0.11888129,1924.3,1924.2,0.59858635]
[1688222920843,1.24757579,1924.8,1924.2,7.07838635]
[1688222921038,0.12338556,1924.3,1924.2,0.59858635]
[1688222921235,0.3118,1924.7,1924.2,7.07838635]
[1688222921437,0.3118,1924.7,1924.6,3.57681]
[1688222921642,0.3118,1924.7,1924.6,3.86352635]
[1688222925551,0.31179,1924.7,1924.6,3.86352635]
[1688222926345,0.31181,1924.8,1924.6,3.86352635]
[1688222926551,0.31181,1924.8,1924.7,3.245]
[1688222926757,0.31181,1924.8,1924.7,3.55679]
[1688222927447,0.44062909,1924.8,1924.7,3.55679]
[1688222932260,0.72734544,1924.8,1924.7,3.55679]
[1688222937454,0.12881909,1924.8,1924.7,3.57679]
[1688222937652,1.71516579,1924.9,1924.7,3.57679]
[1688222937953,0.93576579,1924.9,1924.8,3.55871635]
[1688222938258,7.37582054,1925.0,1924.8,3.87048635]
[1688222938559,6.44005475,1925.0,1924.9,3.58376]
[1688222938859,0.31176,1925.0,1924.9,3.58376]
[1688222942659,0.44334028,1925.0,1924.9,3.58376]
[1688222945666,5.31594028,1925.0,1924.9,3.58376]
[1688222945869,6.25170607,1925.0,1924.9,3.58376]
[1688222946963,6.53842242,1925.0,1924.9,3.58376]
[1688222947163,6.25170607,1925.0,1924.9,3.58376]
[1688222949660,6.25170607,1925.0,1924.9,3.99667099]
[1688222949855,11.11960607,1925.0,1924.9,3.99667099]
[1688222951364,11.11957607,1925.0,1924.9,3.99667099]
[1688222952169,11.11958607,1925.0,1924.9,3.99667099]
[1688222952367,10.80784607,1925.0,1924.9,3.99667099]
[1688222952572,10.18384028,1925.0,1924.9,3.99667099]
[1688222952775,11.11960607,1925.0,1924.9,3.99667099]
[1688222953365,11.11957607,1925.0,1924.9,3.99667099]
[1688222953566,11.11958607,1925.0,1924.9,3.99667099]
[1688222956160,11.40630242,1925.0,1924.9,3.99667099]
[1688222956660,11.11958607,1925.0,1924.9,3.99667099]
[1688222960576,11.40630242,1925.0,1924.9,3.99667099]
[1688222964777,17.53459717,1925.0,1924.9,3.99667099]
[1688222965479,17.24788082,1925.0,1924.9,3.99667099]
[1688222966082,17.53459717,1925.0,1924.9,3.99667099]
[1688222966272,17.53459717,1925.0,1924.9,3.98967099]
[1688222966876,17.53459717,1925.0,1924.9,4.27638734]
[1688222967678,17.53459717,1925.0,1924.9,3.98967099]
[1688222968477,17.53459717,1925.0,1924.9,4.27638734]
[1688222968684,17.24788082,1925.0,1924.9,4.27638734]
[1688222971285,17.53459717,1925.0,1924.9,4.27638734]
[1688222972187,17.24788082,1925.0,1924.9,4.25638734]
[1688222974291,17.53459717,1925.0,1924.9,4.25638734]
[1688222974483,17.53459717,1925.0,1924.9,3.96967099]
[1688222975092,17.53459717,1925.0,1924.9,4.25638734]
[1688222975785,17.24788082,1925.0,1924.9,4.25638734]
[1688222976082,17.53459717,1925.0,1924.9,4.25638734]
[1688222976890,17.22285717,1925.0,1924.9,4.25638734]
[1688222977187,17.53459717,1925.0,1924.9,4.25638734]
[1688222977990,17.53459717,1925.0,1924.9,3.96967099]
[1688222978186,17.53459717,1925.0,1924.9,3.245]
[1688222978396,11.40630242,1925.0,1924.9,3.245]
[1688222978593,11.40630242,1925.0,1924.8,0.77943]
[1688222978594,17.89110242,1925.0,1924.8,0.77943]
[1688222978796,17.89110242,1925.0,1924.8,1.20285059]
[1688222978797,7.63722002,1924.9,1924.8,1.20285059]
[1688222978996,8.07524058,1924.9,1924.8,0.42342059]
[1688222979401,8.07524058,1924.9,1924.8,0.31176]
[1688222980699,1.94127047,1924.9,1924.8,0.31176]
[1688222981104,8.76086401,1924.9,1924.8,0.31176]
[1688222984305,8.76086401,1924.9,1924.7,4.46668618]
[1688222984508,6.44773966,1924.8,1924.7,4.46668618]
[1688222984703,7.6702218,1924.8,1924.7,4.46668618]
[1688222985101,12.9107218,1924.8,1924.7,4.46668618]
[1688222985793,17.9589218,1924.8,1924.7,4.46668618]
[1688222987212,21.1667218,1924.8,1924.7,4.46668618]
[1688222987803,21.29308832,1924.8,1924.7,4.46668618]
[1688222992105,24.57008832,1924.8,1924.7,1.20168618]
[1688222994105,24.57008832,1924.8,1924.7,0.42227618]
[1688222994301,24.57008832,1924.8,1924.7,0.73404618]
[1688222994502,24.57008832,1924.8,1924.7,0.31177]